fUST/lending_fUST_20240916
["ID","MTS","AMOUNT","RATE_DAILY","PERIOD"]
[338289113,1726480374762,689.13,0.00026,60]
[338289114,1726480374795,500.0,0.00026,60]
[338289115,1726480374826,10888.45,0.00026,60]
[338289116,1726480374867,4089.47,0.00026,60]
[338289117,1726480374899,2008.19,0.00026,60]
[338289118,1726480374931,1557.66,0.00026,60]
[338289119,1726480374996,689.13,0.00026,60]
[338289120,1726480375030,10888.45,0.00026,60]
[338289121,1726480375066,500.0,0.00026,60]
[338289122,1726480375122,2008.19,0.00026,60]
[338289123,1726480375155,4089.47,0.00026,60]
[338289124,1726480375186,1557.66,0.00026,60]
[338289125,1726480375252,10888.45,0.00026,60]
[338289126,1726480375289,500.0,0.00026,60]
[338289127,1726480375320,689.13,0.00026,60]
[338289128,1726480375421,1557.66,0.00026,60]
[338289129,1726480375453,4089.47,0.00026,60]
[338289130,1726480375486,2008.19,0.00026,60]
[338289131,1726480375524,10888.45,0.00026,60]
[338289132,1726480375610,500.0,0.00026,60]
[338289133,1726480375668,689.22093114,0.00026,60]
[338289134,1726480375743,4089.47,0.00026,60]
[338289135,1726480375780,2008.31468077,0.00026,60]
[338289136,1726480375812,10888.45,0.00026,60]
[338289137,1726480375844,500.0,0.00026,60]
[338289138,1726480376020,4089.47,0.00026,60]
[338289139,1726480376056,10888.45,0.00026,60]
[338289140,1726480376087,500.0,0.00026,60]
[338289141,1726480376118,1557.66,0.00026,60]
[338289142,1726480376290,4089.47,0.00026,60]
[338289143,1726480376322,10888.45,0.00026,60]
[338289144,1726480376354,500.0,0.00026,60]
[338289145,1726480376406,1557.66,0.00026,60]
[338289146,1726480376436,902.12,0.00026,60]
[338289147,1726480376540,4089.47,0.00026,60]
[338289148,1726480376571,10888.45,0.00026,60]
[338289149,1726480376619,500.0,0.00026,60]
[338289150,1726480376675,1557.66,0.00026,60]
[338289151,1726480376708,902.12,0.00026,60]
[338289152,1726480376787,4089.47,0.00026,60]
[338289153,1726480376819,10888.45,0.00026,60]
[338289154,1726480376907,500.0,0.00026,60]
[338289155,1726480376955,902.12,0.00026,60]
[338289156,1726480376989,1557.66,0.00026,60]
[338289157,1726480377077,10888.45,0.00026,60]
[338289158,1726480377406,1557.66,0.00026,60]
[338289159,1726480377440,902.12,0.00026,60]
[338289160,1726480377472,500.0,0.00026,60]
[338289161,1726480377544,10888.45,0.00026,60]
[338289162,1726480377601,4089.47,0.00026,60]
[338289163,1726480377647,500.0,0.00026,60]
[338289164,1726480377680,902.12,0.00026,60]
[338289165,1726480377712,500.0,0.00026,60]
[338289166,1726480377745,4089.47,0.00026,60]
[338289167,1726480377778,10888.45,0.00026,60]
[338289168,1726480377812,500.0,0.00026,60]
[338289169,1726480377843,1557.66,0.00026,60]
[338289170,1726480377877,894.31,0.00026,60]
[338289171,1726480377911,2558.99,0.00026,60]
[338289172,1726480377944,4089.47,0.00026,60]
[338289173,1726480377976,10888.45,0.00026,60]
[338289174,1726480378092,500.0,0.00026,60]
[338289175,1726480378125,902.12,0.00026,60]
[338289176,1726480378163,1557.66,0.00026,60]
[338289177,1726480378195,894.31,0.00026,60]
[338289178,1726480378228,4089.47,0.00026,60]
[338289179,1726480378262,2558.99,0.00026,60]
[338289180,1726480378293,10888.45,0.00026,60]
[338289181,1726480378358,902.12,0.00026,60]
[338289182,1726480378397,894.31,0.00026,60]
[338289183,1726480378429,500.0,0.00026,60]
[338289184,1726480378460,2558.99,0.00026,60]
[338289185,1726480378490,4089.47,0.00026,60]
[338289186,1726480378524,10888.67,0.00026,60]
[338289187,1726480378555,1557.66,0.00026,60]
[338289188,1726480378664,500.0,0.00026,60]
[338289189,1726480378694,902.12,0.00026,60]
[338289190,1726480378727,2558.99,0.00026,60]
[338289191,1726480378758,1557.66,0.00026,60]
[338289192,1726480378790,4089.47,0.00026,60]
[338289193,1726480378820,894.31,0.00026,60]
[338289194,1726480378957,500.0,0.00026,60]
[338289195,1726480378991,2558.99,0.00026,60]
[338289196,1726480379022,1557.66,0.00026,60]
[338289197,1726480379053,902.12,0.00026,60]
[338289198,1726480379083,894.31,0.00026,60]
[338289199,1726480379117,4089.47,0.00026,60]
[338289200,1726480379227,1557.66,0.00026,60]
[338289201,1726480379258,2558.99,0.00026,60]
[338289202,1726480379288,902.12,0.00026,60]
[338289203,1726480379319,500.0,0.00026,60]
[338289204,1726480379348,894.31,0.00026,60]
[338289205,1726480379380,4089.47,0.00026,60]
[338289206,1726480379408,500.0,0.00026,60]
[338289207,1726480379438,1557.66,0.00026,60]
[338289208,1726480379474,2558.99,0.00026,60]
[338289209,1726480379507,902.12,0.00026,60]
[338289210,1726480379540,500.0,0.00026,60]
[338289211,1726480379571,894.31,0.00026,60]
[338289212,1726480379603,4089.47,0.00026,60]
[338289213,1726480379639,600.33,0.00026,60]
[338289214,1726480379706,2558.99,0.00026,60]
[338289215,1726480379737,1557.77770977,0.00026,60]
[338289216,1726480379769,902.12,0.00026,60]
[338289217,1726480379800,894.31,0.00026,60]
[338289218,1726480379834,4089.47,0.00026,60]
[338289219,1726480379872,500.0,0.00026,60]
[338289220,1726480379910,600.33,0.00026,60]
[338289221,1726480379972,2558.99,0.00026,60]
[338289222,1726480380007,902.12,0.00026,60]
[338289223,1726480380041,894.31,0.00026,60]
[338289224,1726480380110,4089.47243589,0.00026,60]
[338289225,1726480380164,600.33,0.00026,60]
[338289226,1726480380197,324.1,0.00026,60]
[338289227,1726480380261,2558.99,0.00026,60]
[338289228,1726480380470,902.12,0.00026,60]
[338289229,1726480380507,894.31,0.00026,60]
[338289230,1726480380539,2558.99,0.00026,60]
[338289231,1726480380571,902.12,0.00026,60]
[338289232,1726480380602,600.33,0.00026,60]
[338289233,1726480380701,894.31,0.00026,60]
[338289234,1726480380809,2558.99,0.00026,60]
[338289235,1726480380855,902.12,0.00026,60]
[338289236,1726480381022,894.31,0.00026,60]
[338289237,1726480381054,600.33,0.00026,60]
[338289238,1726480381085,2558.99,0.00026,60]
[338289239,1726480381465,902.12,0.00026,60]
[338289240,1726480381496,894.31,0.00026,60]
[338289241,1726480381528,600.33,0.00026,60]
[338289242,1726480381559,2558.99,0.00026,60]
[338289243,1726480381687,894.31,0.00026,60]
[338289244,1726480381738,902.12,0.00026,60]
[338289245,1726480381770,600.33,0.00026,60]
[338289246,1726480381801,2558.99,0.00026,60]
[338289247,1726480381930,902.12,0.00026,60]
[338289248,1726480381959,894.31,0.00026,60]
[338289249,1726480381994,600.33,0.00026,60]
[338289250,1726480382024,2558.99,0.00026,60]
[338289251,1726480382199,894.31,0.00026,60]
[338289252,1726480382232,902.12,0.00026,60]
[338289253,1726480382275,2558.99,0.00026,60]
[338289254,1726480382306,600.33,0.00026,60]
[338289255,1726480382336,1904.39,0.00026,60]
[338289256,1726480382518,902.12,0.00026,60]
[338289257,1726480382548,894.31,0.00026,60]
[338289258,1726480382578,2558.99,0.00026,60]
[338289259,1726480382610,600.33,0.00026,60]
[338289260,1726480382641,1904.39,0.00026,60]
[338289261,1726480382793,894.31,0.00026,60]
[338289262,1726480382826,43275.02,0.00026,60]
[338289263,1726480382866,600.33,0.00026,60]
[338289264,1726480382898,902.12,0.00026,60]
[338289265,1726480382928,2558.99,0.00026,60]
[338289266,1726480382963,1904.39,0.00026,60]
[338289267,1726480383006,533.096893,0.00026,60]
[338289268,1726480383078,600.33,0.00026,60]
[338289269,1726480383112,902.12,0.00026,60]
[338289270,1726480383145,894.31,0.00026,60]
[338289271,1726480383183,43275.02,0.00026,60]
[338289272,1726480383216,2558.99,0.00026,60]
[338289273,1726480383250,1904.39,0.00026,60]
[338289274,1726480383363,600.33,0.00026,60]
[338289275,1726480383396,894.31,0.00026,60]
[338289276,1726480383431,902.34611396,0.00026,60]
[338289277,1726480383467,43275.02,0.00026,60]
[338289278,1726480383500,1904.39,0.00026,60]
[338289279,1726480383630,600.33,0.00026,60]
[338289280,1726480383664,894.31,0.00026,60]
[338289281,1726480383740,43275.02,0.00026,60]
[338289282,1726480383949,1904.39,0.00026,60]
[338289283,1726480384001,894.31,0.00026,60]
[338289284,1726480384036,600.33,0.00026,60]
[338289285,1726480384070,43275.02,0.00026,60]
[338289286,1726480384104,1904.39,0.00026,60]
[338289287,1726480384140,600.33,0.00026,60]
[338289288,1726480384251,894.31,0.00026,60]
[338289289,1726480384296,1904.39,0.00026,60]
[338289290,1726480384329,43275.02,0.00026,60]
[338289291,1726480384500,600.33,0.00026,60]
[338289292,1726480384535,894.47,0.00026,60]
[338289293,1726480384615,43275.02,0.00026,60]
[338289294,1726480384650,1904.39,0.00026,60]
[338289295,1726480384743,600.33,0.00026,60]
[338289296,1726480384867,43275.02,0.00026,60]
[338289297,1726480384901,1904.39,0.00026,60]
[338289298,1726480384933,500.0,0.00026,60]
[338289299,1726480384970,2558.99,0.00026,60]
[338289300,1726480385003,600.33,0.00026,60]
[338289301,1726480385132,1904.39,0.00026,60]
[338289302,1726480385168,500.0,0.00026,60]
[338289303,1726480385203,43275.02,0.00026,60]
[338289304,1726480385236,2558.99,0.00026,60]
[338289305,1726480385267,600.33,0.00026,60]
[338289306,1726480385402,1904.39,0.00026,60]
[338289307,1726480385440,500.0,0.00026,60]
[338289308,1726480385472,2558.99,0.00026,60]
[338289309,1726480385591,600.33,0.00026,60]
[338289310,1726480385624,43275.02,0.00026,60]
[338289311,1726480385663,1904.39,0.00026,60]
[338289312,1726480385695,500.0,0.00026,60]
[338289313,1726480385801,16702.58630801,0.00026,60]
[338289314,1726480473446,164.67082,0.00013699,2]
[338289319,1726480986475,164.67082,0.00013699,2]
[338289322,1726481157987,-495.0232877,0.00014856,2]
[338289325,1726481366527,-250.0,0.00015462,2]
[338289326,1726481366552,-250.0,0.00015505,2]
[338289327,1726481366575,-186.593077,0.0001554,2]
[338289328,1726481366598,-250.0,0.00015547,2]
[338289329,1726481366620,-250.0,0.0001559,2]
[338289330,1726481366642,-250.0,0.00015632,2]
[338289331,1726481366665,-250.0,0.00015675,2]
[338289332,1726481366688,-250.0,0.00015717,2]
[338289333,1726481366711,-250.0,0.00015759,2]
[338289334,1726481366735,-250.0,0.00015802,2]
[338289335,1726481366758,-250.0,0.00015844,2]
[338289336,1726481366781,-113.84888904,0.00015887,2]
[338289337,1726481383398,-186.593077,0.00014195,2]
[338289398,1726481438395,-136.15111096,0.00015887,2]
[338289399,1726481438406,-250.0,0.00015929,2]
[338289400,1726481438416,-250.0,0.00015971,2]
[338289401,1726481438425,-250.0,0.00016014,2]
[338289402,1726481438435,-250.0,0.00016056,2]
[338289403,1726481438445,-250.0,0.00016099,2]
[338289404,1726481438455,-250.0,0.00016141,2]
[338289405,1726481438809,-250.0,0.00016183,2]
[338289406,1726481438827,-250.0,0.00016226,2]
[338289407,1726481438837,-250.0,0.00016268,2]
[338289408,1726481438847,-300.0,0.00016305,2]
[338289409,1726481438857,-300.0,0.00016305,2]
[338289410,1726481438867,-24900.0,0.00016306,2]
[338289411,1726481438877,-3000.0,0.00016332,2]
[338289412,1726481438887,-21551.6549191,0.00016416,2]
[338289413,1726481438897,-341.678563,0.00017406,2]
[338289414,1726481438907,-341.678563,0.00017411,2]
[338289415,1726481438916,-341.678563,0.00017415,2]
[338289416,1726481438926,-341.678563,0.0001742,2]
[338289417,1726481438935,-341.678563,0.00017424,2]
[338289418,1726481438946,-341.678563,0.00017429,2]
[338289419,1726481438955,-341.678563,0.00017433,2]
[338289420,1726481438966,-341.678563,0.00017438,2]
[338289421,1726481438975,-341.678563,0.00017443,2]
[338289422,1726481438985,-341.678563,0.00017447,2]
[338289423,1726481438995,-341.678563,0.00017452,2]
[338289424,1726481439005,-341.678563,0.00017456,2]
[338289425,1726481439015,-341.678563,0.00017461,2]
[338289426,1726481439025,-341.678563,0.00017465,2]
[338289427,1726481439034,-341.678563,0.0001747,2]
[338289428,1726481439044,-341.678563,0.00017475,2]
[338289429,1726481439054,-341.678563,0.00017479,2]
[338289430,1726481439064,-341.678563,0.00017484,2]
[338289431,1726481439073,-341.678563,0.00017488,2]
[338289432,1726481439083,-341.678563,0.00017493,2]
[338289433,1726481439092,-2997.94569449,0.00017766,2]
[338289434,1726481439102,-420.0,0.00017936,2]
[338289435,1726481439112,-2997.94569449,0.00018533,2]
[338289436,1726481439121,-150.0,0.000188,2]
[338289437,1726481439130,-500.0,0.00018952,2]
[338289438,1726481439140,-13667.0,0.00019,2]
[338289439,1726481439149,-501.95029199,0.00019,10]
[338289440,1726481439158,-500.0,0.00019,10]
[338289441,1726481439168,-500.0,0.00019,10]
[338289442,1726481439177,-500.0,0.00019,10]
[338289443,1726481439187,-503.05488618,0.00019,10]
[338289444,1726481439196,-5797.50712939,0.00019039,2]
[338289445,1726481439206,-291.00461523,0.00019049,2]
[338289446,1726481439216,-291.00461523,0.00019052,2]
[338289447,1726481439225,-291.00461523,0.00019055,2]
[338289448,1726481439235,-291.00461523,0.00019058,2]
[338289449,1726481439244,-1552.40877858,0.00019058,2]
[338289450,1726481439253,-445.16,0.00019125,3]
[338289451,1726481439262,-222.58,0.00019125,3]
[338289452,1726481439272,-667.78,0.00019125,3]
[338289453,1726481439282,-559.61365552,0.00019135,2]
[338289454,1726481439291,-500.0,0.00019135,2]
[338289455,1726481439301,-500.0,0.00019135,2]
[338289456,1726481439311,-500.0,0.00019135,2]
[338289457,1726481439321,-500.0,0.00019135,2]
[338289458,1726481439330,-500.0,0.00019135,2]
[338289459,1726481439340,-500.0,0.00019135,2]
[338289460,1726481439351,-500.0,0.00019135,2]
[338289461,1726481439361,-500.0,0.00019135,2]
[338289462,1726481439370,-278.73275404,0.00019135,2]
[338289463,1726481439380,-500.0,0.00019135,2]
[338289464,1726481439390,-500.0,0.00019135,2]
[338289465,1726481439399,-500.0,0.00019135,2]
[338289466,1726481439408,-500.0,0.00019135,2]
[338289467,1726481439418,-500.0,0.00019135,2]
[338289468,1726481439427,-500.0,0.00019135,2]
[338289469,1726481439437,-500.0,0.00019135,2]
[338289470,1726481439447,-500.0,0.00019135,2]
[338289471,1726481439457,-500.0,0.00019135,2]
[338289472,1726481439466,-500.0,0.00019135,2]
[338289473,1726481439476,-500.0,0.00019135,2]
[338289474,1726481439485,-500.0,0.00019135,2]
[338289475,1726481439495,-500.0,0.00019135,2]
[338289476,1726481439504,-205.26525591,0.00019136,2]
[338289477,1726481439514,-228.51743427,0.00019136,2]
[338289478,1726481439524,-455.84983601,0.00019136,2]
[338289479,1726481439534,-303.81517574,0.00019136,2]
[338289480,1726481439543,-500.0,0.00019136,2]
[338289481,1726481439554,-500.0,0.00019136,2]
[338289482,1726481439564,-500.0,0.00019136,2]
[338289483,1726481439574,-500.0,0.00019136,2]
[338289484,1726481439584,-472.54423705,0.00019136,2]
[338289485,1726481439594,-500.0,0.00019136,2]
[338289486,1726481439604,-500.0,0.00019136,2]
[338289487,1726481439630,-500.0,0.00019136,2]
[338289488,1726481439642,-500.0,0.00019136,2]
[338289489,1726481439652,-500.0,0.00019136,2]
[338289490,1726481439663,-300.0,0.00019136,2]
[338289491,1726481439673,-92410.1716333,0.00019136,3]
[338289492,1726481439684,-18161.6302909,0.00019136,3]
[338289493,1726481439695,-29149.52631054,0.00019136,5]
[338289494,1726481439705,-184820.343267,0.00019137,3]
[338289495,1726481439715,-36323.2605817,0.00019137,3]
[338289496,1726481439725,-92410.1716333,0.00019137,3]
[338289497,1726481439736,-72646.5211634,0.00019137,3]
[338289498,1726481439746,-235.01436437,0.00019138,2]
[338289499,1726481439756,-54484.8908726,0.00019147,3]
[338289501,1726481439767,-54484.8908726,0.00019148,3]
[338289502,1726481439778,-36323.2605817,0.00019148,3]
[338289503,1726481439788,-18161.6302909,0.00019148,3]
[338289504,1726481439800,-18161.6302909,0.00019163,3]
[338289505,1726481439810,-54484.8908726,0.00019168,3]
[338289506,1726481439820,-500.0,0.00019173,2]
[338289507,1726481439831,-500.0,0.00019173,2]
[338289508,1726481439841,-159.82206664,0.00019173,2]
[338289509,1726481439851,-522.11005746,0.00019173,2]
[338289510,1726481439861,-175.98272928,0.00019173,2]
[338289511,1726481439873,-254.06511387,0.00019173,2]
[338289512,1726481439883,-500.0,0.00019173,2]
[338289513,1726481439893,-500.0,0.00019173,2]
[338289514,1726481439904,-500.0,0.00019173,2]
[338289515,1726481439914,-500.0,0.00019173,2]
[338289516,1726481439925,-500.0,0.00019173,2]
[338289517,1726481439935,-500.0,0.00019173,2]
[338289518,1726481439945,-500.0,0.00019173,2]
[338289519,1726481439956,-500.16155096,0.00019173,2]
[338289520,1726481439966,-500.0,0.00019173,2]
[338289521,1726481439976,-500.0,0.00019173,2]
[338289522,1726481439987,-500.0,0.00019173,2]
[338289523,1726481439997,-513.21623548,0.00019173,2]
[338289524,1726481440007,-160.06625771,0.00019173,2]
[338289525,1726481440018,-500.0,0.00019173,2]
[338289526,1726481440029,-500.0,0.00019173,2]
[338289527,1726481440039,-500.0,0.00019173,2]
[338289528,1726481440053,-500.0,0.00019173,2]
[338289529,1726481440067,-500.0,0.00019173,2]
[338289530,1726481440078,-500.0,0.00019173,2]
[338289531,1726481440088,-500.0,0.00019173,2]
[338289532,1726481440098,-500.0,0.00019173,2]
[338289533,1726481440107,-503.75028867,0.00019173,2]
[338289534,1726481440118,-500.0,0.00019173,2]
[338289535,1726481440128,-160.56293787,0.00019177,2]
[338289536,1726481440138,-501.87713199,0.00019178,2]
[338289537,1726481440149,-500.0,0.00019178,2]
[338289538,1726481440159,-500.0,0.00019178,2]
[338289539,1726481440169,-500.0,0.00019178,2]
[338289540,1726481440180,-500.0,0.00019178,2]
[338289541,1726481440190,-503.3466713,0.00019178,2]
[338289542,1726481440201,-500.0,0.00019178,2]
[338289543,1726481440210,-500.0,0.00019178,2]
[338289544,1726481440226,-234.66981908,0.00019178,2]
[338289545,1726481440237,-500.0,0.00019178,2]
[338289546,1726481440247,-500.0,0.00019178,2]
[338289547,1726481440257,-500.0,0.00019178,2]
[338289548,1726481440267,-500.0,0.00019178,2]
[338289549,1726481440277,-500.0,0.00019178,2]
[338289550,1726481440287,-500.0,0.00019178,2]
[338289551,1726481440300,-500.0,0.00019178,2]
[338289552,1726481440311,-1000.0,0.00019178,2]
[338289553,1726481440320,-500.0,0.00019178,2]
[338289554,1726481440330,-500.0,0.00019178,2]
[338289555,1726481440341,-500.0,0.00019178,2]
[338289556,1726481440353,-454.51185743,0.00019178,2]
[338289557,1726481440363,-500.0,0.00019178,2]
[338289558,1726481440373,-629.02,0.00019178,2]
[338289559,1726481440384,-500.0,0.00019178,2]
[338289560,1726481440394,-625.33735953,0.00019178,2]
[338289561,1726481440405,-500.0,0.00019178,2]
[338289562,1726481440415,-500.0,0.00019178,2]
[338289563,1726481440425,-500.0,0.00019178,2]
[338289564,1726481440435,-500.0,0.00019178,2]
[338289565,1726481440445,-500.0,0.00019178,2]
[338289566,1726481440456,-661.35,0.00019178,2]
[338289567,1726481440467,-1387.0,0.00019178,2]
[338289568,1726481440477,-500.0,0.00019178,2]
[338289569,1726481440487,-500.0,0.00019178,2]
[338289570,1726481440498,-500.0,0.00019178,2]
[338289571,1726481440508,-500.0,0.00019178,2]
[338289572,1726481440518,-500.0,0.00019178,2]
[338289573,1726481440529,-500.0,0.00019178,2]
[338289574,1726481440540,-468.8738588,0.00019178,2]
[338289575,1726481440553,-500.0,0.00019178,2]
[338289576,1726481440564,-1507.25,0.00019178,2]
[338289577,1726481440575,-950.02,0.00019178,2]
[338289578,1726481440585,-500.0,0.00019178,2]
[338289579,1726481440609,-500.0,0.00019178,2]
[338289580,1726481440628,-327.07121224,0.00019178,2]
[338289581,1726481440645,-500.0,0.00019178,2]
[338289582,1726481440663,-500.0,0.00019178,2]
[338289583,1726481440676,-434.71241618,0.00019178,2]
[338289584,1726481440692,-500.0,0.00019178,2]
[338289585,1726481440708,-742.43,0.00019178,2]
[338289586,1726481440724,-500.0,0.00019178,2]
[338289587,1726481440739,-500.0,0.00019178,2]
[338289588,1726481440756,-500.0,0.00019178,2]
[338289589,1726481440774,-500.0,0.00019178,2]
[338289590,1726481440790,-500.0,0.00019178,2]
[338289591,1726481440809,-501.87359042,0.00019178,2]
[338289592,1726481440824,-500.0,0.00019178,2]
[338289593,1726481440841,-500.0,0.00019178,2]
[338289594,1726481440857,-500.0,0.00019178,2]
[338289595,1726481440874,-500.0,0.00019178,2]
[338289596,1726481440888,-500.0,0.00019178,2]
[338289597,1726481440903,-500.0,0.00019178,2]
[338289598,1726481440915,-500.0,0.00019178,2]
[338289599,1726481440930,-500.0,0.00019178,2]
[338289600,1726481440943,-500.0,0.00019178,2]
[338289601,1726481440959,-500.0,0.00019178,2]
[338289602,1726481440975,-500.0,0.00019178,2]
[338289603,1726481440991,-1058.52,0.00019178,2]
[338289604,1726481441008,-500.0,0.00019178,2]
[338289605,1726481441023,-541.06,0.00019178,2]
[338289606,1726481441038,-500.0,0.00019178,2]
[338289607,1726481441053,-500.0,0.00019178,2]
[338289608,1726481441066,-500.0,0.00019178,2]
[338289609,1726481441080,-500.0,0.00019178,2]
[338289610,1726481441096,-500.0,0.00019178,2]
[338289611,1726481441112,-796.41,0.00019178,2]
[338289612,1726481441129,-2982.85,0.00019178,2]
[338289613,1726481441140,-500.0,0.00019178,2]
[338289614,1726481441155,-500.0,0.00019178,2]
[338289615,1726481441169,-500.0,0.00019178,2]
[338289616,1726481441188,-567.21,0.00019178,2]
[338289617,1726481441203,-500.0,0.00019178,2]
[338289618,1726481441216,-500.0,0.00019178,2]
[338289619,1726481441229,-500.0,0.00019178,2]
[338289620,1726481441243,-500.0,0.00019178,2]
[338289621,1726481441257,-853.51,0.00019178,2]
[338289622,1726481441270,-500.0,0.00019178,2]
[338289623,1726481441285,-502.14677564,0.00019178,2]
[338289624,1726481441303,-500.0,0.00019178,2]
[338289625,1726481441319,-500.0,0.00019178,2]
[338289626,1726481441334,-500.0,0.00019178,2]
[338289627,1726481441360,-500.0,0.00019178,2]
[338289628,1726481441374,-513.34219717,0.00019178,2]
[338289629,1726481441389,-500.0,0.00019178,2]
[338289631,1726481441403,-500.0,0.00019178,2]
[338289634,1726481441418,-500.0,0.00019178,2]
[338289636,1726481441433,-500.0,0.00019178,2]
[338289638,1726481441447,-500.0,0.00019178,2]
[338289641,1726481441461,-500.0,0.00019178,2]
[338289643,1726481441474,-500.0,0.00019178,2]
[338289645,1726481441489,-500.0,0.00019178,2]
[338289648,1726481441503,-500.0,0.00019178,2]
[338289650,1726481441518,-500.0,0.00019178,2]
[338289653,1726481441532,-902.97,0.00019178,2]
[338289655,1726481441546,-500.0,0.00019178,2]
[338289657,1726481441560,-500.0,0.00019178,2]
[338289660,1726481441574,-500.0,0.00019178,2]
[338289662,1726481441587,-2429.02,0.00019178,2]
[338289664,1726481441601,-533.98,0.00019178,2]
[338289667,1726481441614,-500.0,0.00019178,2]
[338289669,1726481441628,-500.0,0.00019178,2]
[338289671,1726481441641,-500.0,0.00019178,2]
[338289674,1726481441655,-500.0,0.00019178,2]
[338289676,1726481441668,-758.26,0.00019178,2]
[338289678,1726481441682,-500.0,0.00019178,2]
[338289681,1726481441696,-506.62381281,0.00019178,2]
[338289683,1726481441709,-500.0,0.00019178,2]
[338289686,1726481441723,-511.83763873,0.00019178,2]
[338289688,1726481441737,-500.0,0.00019178,2]
[338289690,1726481441750,-502.33289972,0.00019178,2]
[338289693,1726481441764,-500.0,0.00019178,2]
[338289695,1726481441777,-500.0,0.00019178,2]
[338289697,1726481441791,-500.0,0.00019178,2]
[338289699,1726481441805,-500.0,0.00019178,2]
[338289702,1726481441818,-500.0,0.00019178,2]
[338289704,1726481441830,-500.0,0.00019178,2]
[338289706,1726481441845,-500.0,0.00019178,2]
[338289709,1726481441857,-1658.53,0.00019178,2]
[338289711,1726481441870,-500.0,0.00019178,2]
[338289713,1726481441883,-500.0,0.00019178,2]
[338289715,1726481441897,-844.7,0.00019178,2]
[338289718,1726481441911,-500.0,0.00019178,2]
[338289720,1726481441924,-388.30991188,0.00019178,2]
[338289722,1726481441937,-500.0,0.00019178,2]
[338289725,1726481441950,-500.0,0.00019178,2]
[338289727,1726481441963,-500.0,0.00019178,2]
[338289729,1726481441976,-500.0,0.00019178,2]
[338289732,1726481441989,-500.0,0.00019178,2]
[338289734,1726481442002,-2083.77,0.00019178,2]
[338289736,1726481442015,-231.16680212,0.00019178,2]
[338289739,1726481442028,-500.0,0.00019178,2]
[338289741,1726481442044,-500.0,0.00019178,2]
[338289744,1726481442063,-557.0,0.00019178,2]
[338289746,1726481442076,-500.0,0.00019178,2]
[338289748,1726481442089,-500.0,0.00019178,2]
[338289751,1726481442102,-500.0,0.00019178,2]